fUSD/lending_fUSD_20260221
["ID","MTS","AMOUNT","RATE_DAILY","PERIOD"]
[406258895,1771666328348,-303.39643966,0.00030025,2]
[406258896,1771666328358,-350.0,0.00030271,5]
[406258897,1771666328368,-350.0,0.00030271,5]
[406258898,1771666328378,-243.02,0.00030411,120]
[406258899,1771666328388,-210.45,0.000305,30]
[406258900,1771666328398,-151.00118991,0.00030794,2]
[406258901,1771666328409,-2000.0,0.000308,2]
[406258902,1771666328419,-450.0,0.00030819,5]
[406258903,1771666328429,-450.0,0.00030819,5]
[406258904,1771666328439,-200.0,0.00031158,2]
[406258905,1771666328450,-550.0,0.00031367,5]
[406258906,1771666328464,-550.0,0.00031367,5]
[406258907,1771666328475,-159.0,0.00031426,7]
[406258908,1771666328486,-159.0,0.00031426,7]
[406258909,1771666328497,-150.0,0.0003147,2]
[406258910,1771666328508,-151.00118991,0.00031699,2]
[406258911,1771666328518,-355.50863551,0.00031915,5]
[406258912,1771666328529,-650.0,0.00031915,5]
[406258913,1771666328540,-500.0,0.00031937,120]
[406258914,1771666328550,-522.0,0.00032,16]
[406258915,1771666328561,-2000.0,0.000322,2]
[406258916,1771666328571,-333.76,0.00032554,30]
[406258917,1771666328581,-151.00118998,0.00032605,2]
[406258918,1771666328592,-2000.0,0.000327,2]
[406258919,1771666328602,-1000.0,0.00032867,7]
[406258920,1771666328613,-392.33759594,0.00032876,2]
[406258921,1771666328623,-461.18514707,0.00032876,2]
[406258922,1771666328633,-250.0,0.00032876,120]
[406258923,1771666328644,-250.0,0.00032876,120]
[406258924,1771666328655,-250.0,0.00032876,120]
[406258925,1771666328666,-250.0,0.00032876,120]
[406258926,1771666328676,-250.0,0.00032876,120]
[406258927,1771666328687,-250.0,0.00032876,120]
[406258928,1771666328697,-250.0,0.00032876,120]
[406258929,1771666328708,-250.73232894,0.00032876,120]
[406258930,1771666328718,-408.13398364,0.00032876,2]
[406258931,1771666328728,-500.0,0.00032876,2]
[406258932,1771666328739,-500.0,0.00032876,2]
[406258933,1771666328750,-500.0,0.00032876,2]
[406258934,1771666328760,-500.28487871,0.00032876,2]
[406258935,1771666328771,-767.39841935,0.00032876,2]
[406258936,1771666328782,-767.39841935,0.00032876,2]
[406258937,1771666328792,-767.39841935,0.00032876,2]
[406258938,1771666328802,-767.39841935,0.00032876,2]
[406258939,1771666328813,-767.39841935,0.00032876,2]
[406258940,1771666328825,-767.39841935,0.00032876,2]
[406258941,1771666328836,-767.39841935,0.00032876,2]
[406258942,1771666328847,-767.39841935,0.00032876,2]
[406258943,1771666328858,-767.39841935,0.00032876,2]
[406258944,1771666328869,-174.91456441,0.00032876,2]
[406258945,1771666328880,-500.0,0.00032876,2]
[406258946,1771666328890,-606.26332705,0.00032876,2]
[406258947,1771666328901,-792.97836665,0.00032876,2]
[406258948,1771666328912,-792.97836665,0.00032876,2]
[406258949,1771666328924,-792.97836665,0.00032876,2]
[406258950,1771666328934,-166.670398,0.00032877,31]
[406258951,1771666328944,-160.0,0.00033,120]
[406258952,1771666328955,-150.0,0.00033,14]
[406258953,1771666328973,-170.0,0.00033,14]
[406258954,1771666328993,-150.0,0.00033043,2]
[406258955,1771666329003,-1000.0,0.00033141,7]
[406258956,1771666329013,-150.0,0.00033151,30]
[406258957,1771666329023,-1000.0,0.00033415,7]
[406258958,1771666329033,-2000.0,0.000336,7]
[406258959,1771666329042,-1000.0,0.00033689,7]
[406258960,1771666329052,-161.05,0.000337,14]
[406258961,1771666329331,-284.85,0.000337,14]
[406258962,1771666329343,-1335.55,0.000337,2]
[406258963,1771666329353,-1276.0,0.00033724,2]
[406258964,1771666329363,-268.278,0.00033724,2]
[406258965,1771666329373,-1222.063,0.00033724,2]
[406258966,1771666329383,-1355.671,0.00033724,2]
[406258967,1771666329393,-633.528,0.00033724,2]
[406258968,1771666329403,-2466.076,0.00033724,2]
[406258969,1771666329414,-1000.0,0.00033963,7]
[406258970,1771666329423,-173.74378417,0.00034,7]
[406258971,1771666329439,-1000.0,0.00034237,7]
[406258972,1771666329459,-150.0,0.00034484,5]
[406258973,1771666329481,-1000.0,0.00034511,7]
[406258974,1771666329495,-150.0,0.00034521,30]
[406258975,1771666329506,-150.0,0.00034696,2]
[406258976,1771666329517,-1644.0,0.00034785,7]
[406258977,1771666329528,-324.22833812,0.00035,30]
[406258978,1771666329539,-2587.0,0.00035,7]
[406258979,1771666329549,-250.0,0.00035032,5]
[406258980,1771666329559,-1000.0,0.00035059,7]
[406258981,1771666329570,-150.0,0.00035069,36]
[406258982,1771666329581,-221.0,0.00035069,36]
[406258983,1771666329593,-150.0,0.00035069,36]
[406258984,1771666329603,-229.0,0.00035069,36]
[406258985,1771666329614,-150.0,0.00035069,36]
[406258986,1771666329624,-185.0,0.00035069,36]
[406258987,1771666329635,-522.0,0.000352,19]
[406258988,1771666329645,-1000.0,0.00035333,7]
[406258989,1771666329655,-350.0,0.0003558,5]
[406258990,1771666329666,-193.455929,0.00035589,120]
[406258991,1771666329678,-470.612915,0.000356,31]
[406258992,1771666329687,-470.612915,0.000356,31]
[406258993,1771666329699,-470.612915,0.000356,31]
[406258994,1771666329711,-470.612915,0.000356,31]
[406258995,1771666329722,-1000.0,0.00035607,7]
[406258996,1771666329732,-500.0,0.00035699,8]
[406258997,1771666329743,-500.0,0.00035699,8]
[406258998,1771666329754,-500.0,0.00035699,8]
[406258999,1771666329765,-404.7,0.000357,14]
[406259000,1771666329777,-151.0,0.000357,31]
[406259001,1771666329789,-442.335122,0.000357,31]
[406259002,1771666329799,-442.335122,0.000357,31]
[406259003,1771666329811,-442.335122,0.000357,31]
[406259004,1771666329820,-442.335122,0.000357,31]
[406259005,1771666329831,-1000.0,0.00035881,14]
[406259006,1771666329840,-150.0,0.00036,120]
[406259007,1771666329851,-1000.0,0.00036,120]
[406259008,1771666329860,-338.0,0.00036,120]
[406259009,1771666329870,-450.0,0.00036128,5]
[406259010,1771666329879,-1000.0,0.00036155,14]
[406259011,1771666329890,-151.0,0.00036247,30]
[406259012,1771666329901,-2000.0,0.000364,2]
[406259013,1771666329911,-1000.0,0.00036428,14]
[406259014,1771666329922,-150.0,0.0003643,2]
[406259015,1771666329932,-6859.45,0.00036552,2]
[406259016,1771666329942,-333.76,0.00036583,30]
[406259017,1771666329951,-151.0,0.000366,31]
[406259018,1771666329961,-151.0,0.000366,31]
[406259019,1771666329971,-281092.68,0.000366,2]
[406259020,1771666329980,-150.0,0.00036619,2]
[406259021,1771666329989,-215.0,0.00036619,2]
[406259022,1771666329999,-269.0,0.00036619,2]
[406259023,1771666330008,-200.0,0.00036619,2]
[406259024,1771666330017,-150.097,0.00036619,2]
[406259025,1771666330027,-150.0,0.00036619,2]
[406259026,1771666330036,-172.251,0.00036619,2]
[406259027,1771666330045,-150.0,0.00036619,2]
[406259028,1771666330054,-150.031,0.00036619,2]
[406259029,1771666330063,-150.0,0.00036619,2]
[406259030,1771666330075,-150.0,0.00036619,2]
[406259031,1771666330084,-150.0,0.00036619,2]
[406259032,1771666330095,-150.079,0.00036619,2]
[406259033,1771666330111,-248.71350372,0.00036648,7]
[406259034,1771666330130,-550.0,0.00036676,5]
[406259035,1771666330140,-1335.55,0.000367,2]
[406259036,1771666330150,-1000.0,0.00036702,14]
[406259037,1771666330160,-1276.0,0.00036724,2]
[406259038,1771666330169,-150.0,0.00036724,2]
[406259039,1771666330178,-1209.0,0.00036724,2]
[406259040,1771666330188,-1338.0,0.00036724,2]
[406259041,1771666330198,-618.0,0.00036724,2]
[406259042,1771666330207,-2453.0,0.00036724,2]
[406259043,1771666330217,-198.77581708,0.0003683,2]
[406259044,1771666330227,-206.40666583,0.0003683,2]
[406259045,1771666330236,-1000.0,0.00036976,14]
[406259046,1771666330246,-206.65221761,0.000372,120]
[406259047,1771666330256,-206.65221758,0.000372,120]
[406259048,1771666330265,-206.65221758,0.000372,120]
[406259049,1771666330275,-206.65221758,0.000372,120]
[406259050,1771666330283,-206.65221758,0.000372,120]
[406259051,1771666330292,-650.56803031,0.00037224,5]
[406259052,1771666330301,-1999.0,0.0003725,14]
[406259053,1771666330310,-210.45,0.000373,30]
[406259054,1771666330320,-31783.58,0.00037816,2]
[406259055,1771666330329,-281092.68,0.000379,14]
[406259056,1771666330338,-815.0,0.00038,120]
[406259057,1771666330347,-160.0,0.00038,120]
[406259058,1771666330356,-1000.0,0.00038,120]
[406259059,1771666330365,-500.0,0.00038,120]
[406259060,1771666330375,-284.85,0.000381,14]
[406259061,1771666330385,-150.0,0.00038252,2]
[406259062,1771666330394,-1335.55,0.000383,2]
[406259063,1771666330403,-1999.0,0.00038356,120]
[406259064,1771666330412,-13944.75,0.00038356,30]
[406259065,1771666330421,-151.0,0.00038356,120]
[406259066,1771666330430,-152.180498,0.00038356,120]
[406259067,1771666330439,-522.0,0.000384,22]
[406259068,1771666330448,-152.85417942,0.00038646,3]
[406259069,1771666330461,-150.0,0.00038663,90]
[406259070,1771666330471,-500.0,0.00038799,8]
[406259071,1771666330480,-549.32,0.00038799,8]
[406259072,1771666330488,-604.16,0.00038799,8]
[406259073,1771666330499,-281092.68,0.000388,2]
[406259074,1771666330508,-1030.8196,0.00038888,30]
[406259075,1771666330520,-260.84205391,0.00038904,5]
[406259076,1771666330530,-448.0,0.00038966,30]
[406259077,1771666330540,-472.0,0.00038966,30]
[406259078,1771666330549,-281092.68,0.00039,14]
[406259079,1771666330558,-805.8,0.00039004,30]
[406259080,1771666330567,-2058.34232384,0.00039178,120]
[406259081,1771666330577,-500.0,0.00039449,8]
[406259082,1771666330586,-500.0,0.00039449,8]
[406259083,1771666330595,-279.0,0.00039452,120]
[406259084,1771666330605,-150.0,0.00039619,2]
[406259085,1771666330613,-150.0,0.00039619,2]
[406259086,1771666330622,-150.0,0.00039619,2]
[406259087,1771666330632,-150.0,0.00039619,2]
[406259088,1771666330642,-150.0,0.00039619,2]
[406259089,1771666330651,-150.0,0.00039619,2]
[406259090,1771666330663,-150.0,0.00039619,2]
[406259091,1771666330672,-150.0,0.00039619,2]
[406259092,1771666330682,-1038.2,0.00039674,30]
[406259093,1771666330691,-1276.0,0.00039724,2]
[406259094,1771666330700,-150.0,0.00039724,2]
[406259095,1771666330709,-1209.0,0.00039724,2]
[406259096,1771666330719,-1338.0,0.00039724,2]
[406259097,1771666330728,-618.0,0.00039724,2]
[406259098,1771666330737,-2453.0,0.00039724,2]
[406259099,1771666330747,-152.0,0.00039736,3]
[406259100,1771666330757,-309.0,0.000398,2]
[406259101,1771666330767,-632.0,0.000398,2]
[406259102,1771666330779,-303.0,0.000398,2]
[406259103,1771666330789,-524.56,0.000399,120]
[406259104,1771666330799,-404.7,0.000399,14]
[406259105,1771666330808,-1335.55,0.0004,30]
[406259106,1771666330818,-153.0,0.0004,120]
[406259107,1771666330828,-153.0,0.0004,120]
[406259108,1771666330837,-155.56202628,0.0004,120]
[406259109,1771666330847,-277.11082462,0.0004,30]
[406259110,1771666330856,-4655.42870505,0.0004,30]
[406259111,1771666330865,-161.0,0.0004,120]
[406259112,1771666330874,-161.74,0.0004,90]
[406259113,1771666330883,-501.13,0.0004,10]
[406259114,1771666330892,-1000.0,0.0004,120]
[406259115,1771666330904,-500.0,0.0004,120]
[406259116,1771666330915,-245.05,0.0004,120]
[406259117,1771666330925,-346.05,0.0004,120]
[406259118,1771666330936,-650.42,0.0004,120]
[406259119,1771666330945,-300.0,0.0004,2]
[406259120,1771666330953,-151.0,0.0004,120]
[406259121,1771666330962,-442.335122,0.0004,120]
[406259122,1771666330972,-442.335122,0.0004,120]
[406259123,1771666330981,-442.335122,0.0004,120]
[406259124,1771666330991,-442.335113,0.0004,120]
[406259125,1771666331002,-470.612915,0.0004,120]
[406259126,1771666331012,-470.612915,0.0004,120]
[406259127,1771666331022,-470.612915,0.0004,120]
[406259128,1771666331031,-470.612912,0.0004,120]
[406259129,1771666331041,-2000.0,0.000401,2]
[406259130,1771666331050,-37281.85411756,0.00040117,5]
[406259131,1771666331060,-150.0,0.00040165,2]
[406259132,1771666331069,-772.06978495,0.00040278,120]
[406259133,1771666331078,-1038.2,0.00040344,30]
[406259134,1771666331087,-151.80746694,0.0004038,7]
[406259135,1771666331096,-150.0,0.0004038,7]
[406259136,1771666331105,-150.0,0.0004038,7]
[406259137,1771666331114,-150.0,0.0004038,7]
[406259138,1771666331123,-234.06270662,0.0004038,7]
[406259139,1771666331132,-150.0,0.0004038,7]
[406259140,1771666331141,-150.0,0.0004038,7]
[406259141,1771666331151,-150.0,0.0004038,7]
[406259142,1771666331160,-150.0,0.0004038,7]
[406259143,1771666331171,-150.0,0.0004038,7]
[406259144,1771666331182,-150.0,0.0004038,7]
[406259145,1771666331191,-150.0,0.0004038,7]
[406259146,1771666331202,-150.0,0.0004038,7]
[406259147,1771666331212,-150.0,0.0004038,7]
[406259148,1771666331221,-150.0,0.0004038,7]
[406259149,1771666331231,-150.0,0.0004038,7]
[406259150,1771666331241,-150.0,0.0004038,7]
[406259151,1771666331251,-150.0,0.00040495,7]
[406259152,1771666331261,-150.0,0.00040584,7]
[406259153,1771666331271,-150.0,0.0004061,7]
[406259154,1771666331282,-333.76,0.00040612,30]
[406259155,1771666331291,-150.0,0.00040644,7]
[406259156,1771666331301,-150.0,0.00040644,7]
[406259157,1771666331311,-300.0,0.00040678,2]
[406259158,1771666331322,-434.09436665,0.00040678,2]
[406259159,1771666331331,-150.0,0.00040679,7]
[406259160,1771666331340,-153.0,0.000407,120]
[406259161,1771666331349,-150.0,0.00040725,7]
[406259162,1771666331359,-150.0,0.00040788,7]
[406259163,1771666331368,-150.0,0.00040788,7]
[406259164,1771666331378,-153.0,0.000408,120]
[406259165,1771666331389,-200.74789,0.000408,20]
[406259166,1771666331398,-150.0,0.0004084,7]
[406259167,1771666331408,-150.0,0.00040908,7]
[406259168,1771666331417,-150.0,0.00040908,7]
[406259169,1771666331426,-150.0,0.00040941,7]
[406259170,1771666331435,-116720.0,0.0004095,60]
[406259171,1771666331444,-150.0,0.00040956,7]
[406259172,1771666331456,-2202.418,0.00040976,59]
[406259173,1771666331465,-216.684,0.00040976,59]
[406259174,1771666331475,-150.0,0.00040979,7]
[406259175,1771666331484,-150.0,0.00040992,7]
[406259176,1771666331494,-660.80659205,0.00041,30]
[406259177,1771666331504,-160.0,0.00041,120]
[406259178,1771666331514,-1038.2,0.00041014,30]
[406259179,1771666331524,-150.0,0.00041071,7]
[406259180,1771666331534,-150.0,0.00041079,90]
[406259181,1771666331544,-541.0,0.00041096,36]
[406259182,1771666331554,-842.0,0.00041096,120]
[406259183,1771666331563,-300.0,0.00041096,10]
[406259184,1771666331573,-23525.27,0.00041096,120]
[406259185,1771666331582,-161.731781,0.00041096,120]
[406259186,1771666331591,-235.388409,0.00041096,120]
[406259187,1771666331600,-235.388409,0.00041096,120]
[406259188,1771666331610,-235.388409,0.00041096,120]
[406259189,1771666331621,-235.388409,0.00041096,120]
[406259190,1771666331631,-235.388409,0.00041096,120]
[406259191,1771666331641,-235.388409,0.00041096,120]
[406259192,1771666331650,-235.388409,0.00041096,120]
[406259193,1771666331659,-235.388409,0.00041096,120]
[406259194,1771666331668,-235.388409,0.00041096,120]
[406259195,1771666331677,-235.388409,0.00041096,120]
[406259196,1771666331687,-235.388409,0.00041096,120]
[406259197,1771666331708,-235.388409,0.00041096,120]
[406259198,1771666331810,-235.388409,0.00041096,120]
[406259199,1771666331821,-235.388409,0.00041096,120]
[406259200,1771666331830,-235.388409,0.00041096,120]
[406259201,1771666331840,-235.388409,0.00041096,120]
[406259202,1771666331851,-235.388409,0.00041096,120]
[406259203,1771666331860,-235.388409,0.00041096,120]
[406259204,1771666331869,-235.388409,0.00041096,120]
[406259205,1771666331879,-235.388406,0.00041096,120]
[406259206,1771666331890,-165.215076,0.00041096,120]
[406259207,1771666331899,-179.878644,0.00041096,120]
[406259208,1771666331907,-151.000006,0.00041096,120]
[406259209,1771666331916,-223.51177975,0.00041096,120]
[406259210,1771666331925,-151.0,0.00041096,120]
[406259211,1771666331934,-257.98069025,0.00041096,120]
[406259212,1771666331943,-180.099064,0.00041096,120]
[406259213,1771666331953,-154.945804,0.00041096,120]
[406259214,1771666331963,-161.711773,0.00041096,120]
[406259215,1771666331972,-979.154963,0.00041096,120]
[406259216,1771666331981,-979.154963,0.00041096,120]
[406259217,1771666331990,-979.154963,0.00041096,120]
[406259218,1771666331999,-979.154963,0.00041096,120]
[406259219,1771666332008,-979.154963,0.00041096,120]
[406259220,1771666332016,-979.154963,0.00041096,120]
[406259221,1771666332025,-979.154963,0.00041096,120]
[406259222,1771666332034,-979.154963,0.00041096,120]
[406259223,1771666332044,-979.154963,0.00041096,120]
[406259224,1771666332052,-979.154963,0.00041096,120]
[406259225,1771666332061,-979.154963,0.00041096,120]
[406259226,1771666332070,-979.154963,0.00041096,120]
[406259227,1771666332080,-979.154963,0.00041096,120]
[406259228,1771666332088,-979.154963,0.00041096,120]
[406259229,1771666332097,-979.154963,0.00041096,120]
[406259230,1771666332109,-979.154963,0.00041096,120]
[406259231,1771666332120,-979.154963,0.00041096,120]
[406259232,1771666332130,-979.154963,0.00041096,120]
[406259233,1771666332141,-979.154963,0.00041096,120]
[406259234,1771666332151,-979.15497,0.00041096,120]
[406259235,1771666332162,-198.693508,0.00041096,120]
[406259236,1771666332171,-151.0,0.00041096,120]
[406259237,1771666332180,-151.0,0.00041096,120]
[406259238,1771666332189,-151.0,0.00041096,120]
[406259239,1771666332197,-262.198795,0.00041096,120]
[406259240,1771666332206,-163.774851,0.00041096,120]
[406259241,1771666332215,-151.000002,0.00041096,120]
[406259242,1771666332224,-151.0,0.00041096,120]
[406259243,1771666332232,-151.0,0.00041096,120]
[406259244,1771666332241,-207.043222,0.00041096,120]
[406259245,1771666332251,-151.0,0.00041096,120]
[406259246,1771666332259,-151.0,0.00041096,120]
[406259247,1771666332268,-151.0,0.00041096,120]
[406259248,1771666332278,-151.0,0.00041096,120]
[406259249,1771666332287,-151.0,0.00041096,120]
[406259250,1771666332295,-151.0,0.00041096,120]
[406259251,1771666332305,-151.0,0.00041096,120]
[406259252,1771666332314,-151.0,0.00041096,120]
[406259253,1771666332324,-151.0,0.00041096,120]
[406259254,1771666332333,-205.032456,0.00041096,120]
[406259255,1771666332342,-151.0,0.00041096,120]
[406259256,1771666332351,-151.0,0.00041096,120]
[406259257,1771666332360,-151.0,0.00041096,120]
[406259258,1771666332368,-151.0,0.00041096,120]
[406259259,1771666332377,-151.0,0.00041096,120]
[406259260,1771666332386,-292.36218,0.00041096,120]
[406259261,1771666332395,-151.0,0.00041096,7]
[406259262,1771666332404,-151.0,0.00041096,7]
[406259263,1771666332413,-151.0,0.00041096,7]
[406259264,1771666332422,-218.979802,0.00041096,7]
[406259265,1771666332431,-151.0,0.00041096,120]
[406259266,1771666332441,-151.0,0.00041096,120]
[406259267,1771666332450,-151.0,0.00041096,120]
[406259268,1771666332463,-151.0,0.00041096,120]
[406259269,1771666332472,-151.0,0.00041096,120]
[406259270,1771666332481,-151.0,0.00041096,120]
[406259271,1771666332490,-151.0,0.00041096,120]
[406259272,1771666332500,-151.0,0.00041096,120]
[406259273,1771666332509,-151.0,0.00041096,120]
[406259274,1771666332518,-151.0,0.00041096,120]
[406259275,1771666332527,-151.0,0.00041096,120]
[406259276,1771666332537,-266.373245,0.00041096,120]
[406259277,1771666332546,-151.0,0.00041096,120]
[406259278,1771666332555,-268.091694,0.00041096,120]
[406259279,1771666332564,-151.0,0.00041096,120]
[406259280,1771666332574,-151.0,0.00041096,120]
[406259281,1771666332583,-151.0,0.00041096,120]
[406259282,1771666332593,-151.0,0.00041096,120]
[406259283,1771666332602,-151.0,0.00041096,120]
[406259284,1771666332612,-151.0,0.00041096,120]
[406259285,1771666332626,-151.0,0.00041096,120]
[406259286,1771666332636,-151.0,0.00041096,120]
[406259287,1771666332646,-151.0,0.00041096,120]
[406259288,1771666332655,-151.791813,0.00041096,120]
[406259289,1771666332664,-151.0,0.00041096,120]
[406259290,1771666332673,-151.0,0.00041096,120]
[406259291,1771666332682,-151.0,0.00041096,120]
[406259292,1771666332691,-151.0,0.00041096,120]
[406259293,1771666332700,-151.0,0.00041096,120]
[406259294,1771666332709,-151.0,0.00041096,120]
[406259295,1771666332719,-151.0,0.00041096,120]
[406259296,1771666332728,-151.0,0.00041096,120]
[406259297,1771666332737,-151.0,0.00041096,120]
[406259298,1771666332747,-151.0,0.00041096,120]
[406259299,1771666332757,-151.0,0.00041096,120]
[406259300,1771666332767,-151.0,0.00041096,120]
[406259301,1771666332776,-200.0,0.00041096,20]
[406259302,1771666332785,-150.0,0.00041128,30]
[406259303,1771666332794,-150.0,0.00041128,30]
[406259304,1771666332803,-150.0,0.00041128,30]
[406259305,1771666332812,-150.0,0.00041128,30]
[406259306,1771666332822,-500.0,0.00041155,120]
[406259307,1771666332832,-200.0,0.00041155,120]
[406259308,1771666332841,-150.0,0.00041172,30]
[406259309,1771666332850,-150.0,0.00041172,30]
[406259310,1771666332859,-150.0,0.00041186,30]
[406259311,1771666332868,-150.0,0.00041196,30]
[406259312,1771666332877,-150.0,0.00041196,30]
[406259313,1771666332886,-150.0,0.00041278,30]
[406259314,1771666332895,-153.0,0.000413,120]
[406259315,1771666332904,-150.0,0.00041301,30]
[406259316,1771666332914,-150.0,0.000414,30]
[406259317,1771666332924,-150.0,0.00041416,30]
[406259318,1771666332933,-150.0,0.00041425,90]
[406259319,1771666332942,-150.0,0.00041436,30]
[406259320,1771666332951,-150.0,0.00041436,30]
[406259321,1771666332960,-153.0,0.000415,120]
[406259322,1771666332971,-150.0,0.00041502,30]
[406259323,1771666332981,-150.0,0.00041531,30]
[406259324,1771666332991,-150.0,0.00041577,30]
[406259325,1771666333002,-522.0,0.000416,25]
[406259326,1771666333012,-150.0,0.00041604,30]
[406259327,1771666333021,-150.0,0.00041604,30]
[406259328,1771666333031,-648.13,0.00041644,120]
[406259329,1771666333039,-842.0,0.00041644,120]
[406259330,1771666333048,-150.0,0.00041646,30]
[406259331,1771666333059,-500.0,0.0004166,120]
[406259332,1771666333068,-500.0,0.0004166,120]
[406259333,1771666333077,-1038.2,0.00041684,30]
[406259334,1771666333087,-150.0,0.000417,30]
[406259335,1771666333097,-150.0,0.000417,30]
[406259336,1771666333106,-150.0,0.00041761,30]
[406259337,1771666333114,-1229.12531447,0.000418,120]
[406259338,1771666333124,-150.0,0.00041808,30]
[406259339,1771666333134,-150.0,0.00041876,30]
[406259340,1771666333145,-150.0,0.00041876,30]
[406259341,1771666333154,-150.0,0.00041876,30]
[406259342,1771666333163,-150.0,0.00041876,30]
[406259343,1771666333172,-150.0,0.00041876,30]
[406259344,1771666333182,-150.0,0.00041876,30]
[406259345,1771666333192,-284.85,0.000419,14]
[406259346,1771666333201,-842.0,0.00041918,120]
[406259347,1771666333210,-461.20688867,0.00041918,10]
[406259348,1771666333219,-300.211629,0.0004194,99]
[406259349,1771666333228,-150.0,0.00041964,30]
[406259350,1771666333237,-150.0,0.00041964,30]
[406259351,1771666333246,-150.0,0.00041991,30]
[406259352,1771666333255,-1335.55,0.00042,30]
[406259353,1771666333264,-153.0,0.00042,120]
[406259354,1771666333273,-500.0,0.00042,120]
[406259355,1771666333282,-500.0,0.00042,120]
[406259356,1771666333292,-150.0,0.00042012,30]
[406259357,1771666333300,-150.0,0.00042012,30]
[406259358,1771666333309,-150.0,0.00042063,30]
[406259359,1771666333318,-150.0,0.00042106,30]
[406259360,1771666333328,-150.0,0.00042173,120]
[406259361,1771666333337,-150.0,0.00042175,30]
[406259362,1771666333346,-842.0,0.00042192,120]
[406259363,1771666333355,-150.0,0.00042216,30]
[406259364,1771666333364,-150.0,0.00042221,30]
[406259365,1771666333374,-150.0,0.00042228,30]
[406259366,1771666333382,-150.0,0.00042228,30]
[406259367,1771666333391,-2613.49283,0.0004225,120]
[406259368,1771666333401,-167.55,0.0004225,120]
[406259369,1771666333410,-153.0,0.000423,120]
[406259370,1771666333419,-116720.0,0.000423,60]
[406259371,1771666333428,-200.0,0.00042316,120]
[406259372,1771666333438,-150.0,0.00042336,30]
[406259373,1771666333447,-167.55,0.0004235,120]
[406259374,1771666333460,-1038.2,0.00042354,30]
[406259375,1771666333470,-1796.90538142,0.00042384,30]
[406259376,1771666333479,-150.0,0.0004242,30]
[406259377,1771666333489,-150.0,0.0004242,30]
[406259378,1771666333499,-167.55,0.0004245,120]
[406259379,1771666333508,-150.0,0.00042451,30]
[406259380,1771666333518,-842.0,0.00042466,120]
[406259381,1771666333528,-150.0,0.00042474,30]
[406259382,1771666333537,-150.0,0.00042492,30]
[406259383,1771666333547,-150.0,0.00042492,30]
[406259384,1771666333556,-680.94766064,0.000425,120]
[406259385,1771666333565,-5157.01799273,0.000425,120]
[406259386,1771666333575,-500.0,0.000425,120]
[406259387,1771666333584,-1796.90538142,0.00042548,30]
[406259388,1771666333595,-167.55,0.0004255,120]
[406259389,1771666333604,-150.0,0.00042566,30]
[406259390,1771666333613,-5000.0,0.00042594,6]
[406259391,1771666333623,-5000.0,0.00042594,6]
[406259392,1771666333633,-5000.0,0.00042594,12]
[406259393,1771666333642,-5000.0,0.00042594,11]
[406259394,1771666333658,-153.0,0.000426,120]